[Event "Schack-SM 2024: Veteran-SM 65+"]
[Site "Fortnox Arena, Hejaregatan 5, Vaxjo, Sweden"]
[Date "2024.06.30"]
[Round "2.4"]
[White "Blomstrom, Lars"]
[Black "Larsson, Per-Olov"]
[Result "1/2-1/2"]
[TimeControl "90 minutes for 40 moves + 30 minutes for the rest of the game + 30 seconds per move from move one."]
[WhiteElo "2122"]
[BlackElo "1933"]

1. Nf3 {[%clk 01:30:09]} {[%emt 00:00:51]} Nf6 {[%clk 01:30:42]} {[%emt
00:00:18]} 2. g3 {[%clk 01:28:08]} {[%emt 00:02:31]} d5 {[%clk 01:30:31]}
{[%emt 00:00:41]} 3. Bg2 {[%clk 01:28:26]} {[%emt 00:00:12]} e6 {[%clk
01:30:38]} {[%emt 00:00:23]} 4. O-O {[%clk 01:27:42]} {[%emt 00:01:14]} Be7
{[%clk 01:30:49]} {[%emt 00:00:19]} 5. d3 {[%clk 01:27:50]} {[%emt 00:00:21]}
O-O {[%clk 01:29:07]} {[%emt 00:02:12]} 6. Nbd2 {[%clk 01:28:14]} {[%emt
00:00:07]} b6 {[%clk 01:28:16]} {[%emt 00:01:22]} 7. e4 {[%clk 01:24:47]}
{[%emt 00:03:56]} Bb7 {[%clk 01:24:31]} {[%emt 00:04:15]} 8. e5 {[%clk
01:21:05]} {[%emt 00:04:12]} Nfd7 {[%clk 01:24:31]} {[%emt 00:00:31]} 9. Re1
{[%clk 01:21:09]} {[%emt 00:00:24]} c5 {[%clk 01:24:16]} {[%emt 00:00:46]} 10.
Nf1 {[%clk 01:20:12]} {[%emt 00:01:26]} Nc6 {[%clk 01:23:57]} {[%emt 00:00:50]}
11. h4 {[%clk 01:19:07]} {[%emt 00:01:35]} Rc8 {[%clk 01:19:27]} {[%emt
00:04:59]} 12. Bf4 {[%clk 01:11:59]} {[%emt 00:07:38]} Re8 {[%clk 01:17:01]}
{[%emt 00:02:57]} 13. N1h2 {[%clk 01:08:10]} {[%emt 00:04:18]} f6 {[%clk
01:11:00]} {[%emt 00:06:31]} 14. Bh3 {[%clk 00:52:18]} {[%emt 00:16:22]} f5
{[%clk 01:05:26]} {[%emt 00:06:05]} 15. Ng5 {[%clk 00:47:28]} {[%emt 00:05:19]}
Bxg5 {[%clk 00:57:14]} {[%emt 00:08:42]} 16. Bxg5 {[%clk 00:46:14]} {[%emt
00:01:45]} Qc7 {[%clk 00:57:14]} {[%emt 00:00:29]} 17. c3 {[%clk 00:40:13]}
{[%emt 00:06:32]} d4 {[%clk 00:56:10]} {[%emt 00:01:35]} 18. Bf4 {[%clk
00:34:24]} {[%emt 00:06:17]} dxc3 {[%clk 00:45:41]} {[%emt 00:11:00]} 19. bxc3
{[%clk 00:34:41]} {[%emt 00:00:13]} Ne7 {[%clk 00:44:53]} {[%emt 00:01:18]} 20.
Bg2 {[%clk 00:28:27]} {[%emt 00:06:44]} Bxg2 {[%clk 00:43:38]} {[%emt
00:01:44]} 21. Kxg2 {[%clk 00:28:55]} {[%emt 00:00:02]} Ng6 {[%clk 00:39:16]}
{[%emt 00:04:52]} 22. Nf3 {[%clk 00:28:43]} {[%emt 00:00:42]} Nxf4+ {[%clk
00:34:46]} {[%emt 00:05:01]} 23. gxf4 {[%clk 00:29:11]} {[%emt 00:00:02]} Nb8
{[%clk 00:34:53]} {[%emt 00:00:23]} 24. Kh2 {[%clk 00:28:06]} {[%emt 00:01:34]}
Rcd8 {[%clk 00:34:39]} {[%emt 00:00:44]} 25. Qe2 {[%clk 00:25:23]} {[%emt
00:03:13]} Nc6 {[%clk 00:33:42]} {[%emt 00:01:28]} 26. Rac1 {[%clk 00:18:38]}
{[%emt 00:07:13]} Qe7 {[%clk 00:32:18]} {[%emt 00:01:55]} 1/2-1/2

[Event "Schack-SM 2024: Veteran-SM 65+"]
[Site "Fortnox Arena, Hejaregatan 5, Vaxjo, Sweden"]
[Date "2024.06.30"]
[Round "2.5"]
[White "Andersson, Sven-Olof"]
[Black "Adler, Bo"]
[Result "1-0"]
[TimeControl "90 minutes for 40 moves + 30 minutes for the rest of the game + 30 seconds per move from move one."]
[WhiteElo "1884"]
[BlackElo "2108"]

1. d4 {[%clk 01:30:59]} {[%emt 00:00:01]} d5 {[%clk 01:29:22]} {[%emt
00:01:38]} 2. Nf3 {[%clk 01:31:06]} {[%emt 00:00:24]} Nf6 {[%clk 01:29:36]}
{[%emt 00:00:15]} 3. g3 {[%clk 01:31:19]} {[%emt 00:00:17]} Nbd7 {[%clk
01:27:40]} {[%emt 00:02:25]} 4. Bg2 {[%clk 01:31:12]} {[%emt 00:00:38]} e6
{[%clk 01:27:03]} {[%emt 00:01:07]} 5. O-O {[%clk 01:30:52]} {[%emt 00:00:50]}
c6 {[%clk 01:22:27]} {[%emt 00:05:06]} 6. b3 {[%clk 01:27:59]} {[%emt
00:03:23]} Bd6 {[%clk 01:21:26]} {[%emt 00:01:30]} 7. Bb2 {[%clk 01:27:52]}
{[%emt 00:00:37]} Qc7 {[%clk 01:15:36]} {[%emt 00:06:20]} 8. Nbd2 {[%clk
01:25:05]} {[%emt 00:03:17]} e5 {[%clk 01:03:46]} {[%emt 00:12:21]} 9. dxe5
{[%clk 01:19:24]} {[%emt 00:06:09]} Nxe5 {[%clk 01:03:32]} {[%emt 00:00:45]} 10.
Nxe5 {[%clk 01:16:18]} {[%emt 00:03:37]} Bxe5 {[%clk 01:03:24]} {[%emt
00:00:38]} 11. Bxe5 {[%clk 01:16:34]} {[%emt 00:00:14]} Qxe5 {[%clk 01:03:49]}
{[%emt 00:00:05]} 12. e4 {[%emt 00:03:25]} O-O {[%clk 00:49:50]} {[%emt
00:14:26]} 13. exd5 {[%clk 01:13:28]} {[%emt 00:00:44]} cxd5 {[%clk 00:42:39]}
{[%emt 00:07:41]} 14. Re1 {[%clk 01:04:55]} {[%emt 00:09:02]} Qc7 {[%clk
00:40:57]} {[%emt 00:02:13]} 15. c4 {[%emt 00:02:07]} Bg4 {[%clk 00:37:46]}
{[%emt 00:03:37]} 16. Bf3 {[%clk 00:59:42]} {[%emt 00:04:07]} Bxf3 {[%clk
00:36:56]} {[%emt 00:01:22]} 17. Qxf3 {[%clk 00:59:58]} {[%emt 00:00:14]} Qa5
{[%clk 00:32:05]} {[%emt 00:05:20]} 18. Re2 {[%clk 00:59:12]} {[%emt 00:01:17]}
Rad8 {[%clk 00:31:36]} {[%emt 00:00:59]} 19. cxd5 {[%clk 00:58:44]} {[%emt
00:00:59]} Rxd5 {[%clk 00:29:38]} {[%emt 00:02:27]} 20. Nc4 {[%clk 00:56:13]}
{[%emt 00:03:02]} Qc7 {[%clk 00:29:42]} {[%emt 00:00:26]} 21. Rae1 {[%clk
00:53:51]} {[%emt 00:02:52]} Rfd8 {[%clk 00:28:33]} {[%emt 00:01:38]} 22. Qxd5
{[%clk 00:52:21]} {[%emt 00:02:01]} 1-0

[Event "Schack-SM 2024: Veteran-SM 65+"]
[Site "Fortnox Arena, Hejaregatan 5, Vaxjo, Sweden"]
[Date "2024.06.30"]
[Round "2.6"]
[White "Hedin, Gunnar"]
[Black "Ghafari, Raymond"]
[Result "1-0"]
[TimeControl "90 minutes for 40 moves + 30 minutes for the rest of the game + 30 seconds per move from move one."]
[WhiteElo "2064"]
[BlackElo "1909"]

1. d4 {[%clk 01:30:44]} {[%emt 00:00:16]} Nf6 {[%clk 01:30:16]} {[%emt
00:00:44]} 2. c4 {[%clk 01:30:47]} {[%emt 00:00:27]} e6 {[%clk 01:30:16]}
{[%emt 00:00:29]} 3. Nc3 {[%clk 01:29:56]} {[%emt 00:01:21]} d5 {[%clk
01:30:21]} {[%emt 00:00:26]} 4. cxd5 {[%clk 01:30:08]} {[%emt 00:00:18]} exd5
{[%clk 01:30:33]} {[%emt 00:00:17]} 5. Bg5 {[%clk 01:30:25]} {[%emt 00:00:13]}
Be7 {[%clk 01:29:01]} {[%emt 00:02:02]} 6. e3 {[%clk 01:29:36]} {[%emt
00:01:20]} O-O {[%emt 00:00:32]} 7. Qc2 {[%emt 00:00:30]} c6 {[%clk 01:28:29]}
{[%emt 00:00:31]} 8. Bd3 {[%clk 01:29:55]} {[%emt 00:00:40]} h6 {[%clk
01:28:43]} {[%emt 00:00:16]} 9. Bh4 {[%clk 01:27:50]} {[%emt 00:02:36]} Nbd7
{[%clk 01:27:48]} {[%emt 00:01:23]} 10. Nge2 {[%clk 01:24:40]} {[%emt
00:03:40]} Re8 {[%clk 01:26:38]} {[%emt 00:01:40]} 11. f3 {[%clk 01:17:22]}
{[%emt 00:07:49]} Nf8 {[%clk 01:13:16]} {[%emt 00:13:50]} 12. Bf2 {[%clk
01:11:16]} {[%emt 00:06:38]} c5 {[%clk 01:12:55]} {[%emt 00:00:50]} 13. O-O
{[%clk 01:05:36]} {[%emt 00:06:10]} c4 {[%clk 01:07:10]} {[%emt 00:06:14]} 14.
Bf5 {[%clk 01:05:50]} {[%emt 00:00:17]} g6 {[%clk 01:07:26]} {[%emt 00:00:14]}
15. Bxc8 {[%clk 01:06:06]} {[%emt 00:00:15]} Rxc8 {[%clk 01:07:44]} {[%emt
00:00:11]} 16. h3 {[%clk 01:03:09]} {[%emt 00:03:28]} Bd6 {[%clk 01:04:07]}
{[%emt 00:04:05]} 17. e4 {[%clk 01:00:02]} {[%emt 00:03:39]} dxe4 {[%clk
00:59:40]} {[%emt 00:04:56]} 18. fxe4 {[%clk 01:00:23]} {[%emt 00:00:09]} Nh5
{[%clk 00:56:15]} {[%emt 00:03:55]} 19. e5 {[%clk 00:56:11]} {[%emt 00:04:42]}
Be7 {[%clk 00:56:04]} {[%emt 00:00:40]} 20. Rad1 {[%clk 00:37:15]} {[%emt
00:19:28]} f6 {[%clk 00:39:48]} {[%emt 00:16:45]} 21. e6 {[%clk 00:28:52]}
{[%emt 00:08:54]} f5 {[%clk 00:35:35]} {[%emt 00:04:40]} 22. d5 {[%clk
00:28:09]} {[%emt 00:01:16]} a6 {[%clk 00:31:02]} {[%emt 00:05:02]} 23. Qd2
{[%clk 00:26:27]} {[%emt 00:02:13]} Bg5 {[%clk 00:30:18]} {[%emt 00:01:12]} 24.
Be3 {[%clk 00:26:41]} {[%emt 00:00:17]} Ng7 {[%clk 00:13:51]} {[%emt 00:16:57]}
25. Bxg5 {[%clk 00:23:27]} {[%emt 00:03:44]} hxg5 {[%clk 00:14:02]} {[%emt
00:00:18]} 26. g4 {[%clk 00:21:59]} {[%emt 00:01:59]} Nh7 {[%clk 00:11:28]}
{[%emt 00:03:04]} 27. Nd4 {[%clk 00:18:13]} {[%emt 00:04:17]} Qd6 {[%clk
00:06:30]} {[%emt 00:05:27]} 28. Qg2 {[%clk 00:16:24]} {[%emt 00:02:19]} Rf8
{[%clk 00:04:40]} {[%emt 00:02:21]} 29. Kh1 {[%clk 00:13:09]} {[%emt 00:03:45]}
b5 {[%clk 00:05:01]} {[%emt 00:00:09]} 30. a3 {[%clk 00:13:19]} {[%emt
00:00:20]} Rce8 {[%clk 00:04:13]} {[%emt 00:01:18]} 31. Qh2 {[%clk 00:09:18]}
{[%emt 00:04:31]} f4 {[%clk 00:03:23]} {[%emt 00:01:19]} 32. Qc2 {[%clk
00:09:16]} {[%emt 00:00:32]} Qe5 {[%clk 00:02:19]} {[%emt 00:01:35]} 33. Rfe1
{[%clk 00:07:45]} {[%emt 00:02:00]} Qf6 {[%clk 00:02:12]} {[%emt 00:00:37]} 34.
Nf3 {[%clk 00:07:35]} {[%emt 00:00:41]} Nxe6 {[%clk 00:02:23]} {[%emt
00:00:17]} 35. dxe6 {[%clk 00:06:50]} {[%emt 00:01:17]} Rxe6 {[%clk 00:02:48]}
{[%emt 00:00:05]} 36. Rxe6 {[%clk 00:06:34]} {[%emt 00:00:46]} Qxe6 {[%clk
00:03:13]} {[%emt 00:00:05]} 37. Qe4 {[%clk 00:06:42]} {[%emt 00:00:22]} Qxe4
{[%clk 00:02:42]} {[%emt 00:01:01]} 38. Nxe4 {[%clk 00:07:09]} {[%emt
00:00:02]} Re8 {[%clk 00:02:56]} {[%emt 00:00:17]} 39. Rd4 {[%clk 00:06:16]}
{[%emt 00:01:22]} Kg7 {[%clk 00:02:58]} {[%emt 00:00:27]} 40. Rd7+ {[%clk
00:05:30]} {[%emt 00:01:17]} Kg8 {[%clk 00:02:53]} {[%emt 00:00:36]} 41. Rd4
{[%clk 00:02:44]} {[%emt 00:03:16]} Kg7 {[%clk 00:02:48]} {[%emt 00:00:34]} 42.
Kg2 {[%clk 00:02:18]} {[%emt 00:00:56]} a5 {[%clk 00:30:22]} {[%emt 00:02:56]}
43. Kf2 {[%clk 00:31:49]} {[%emt 00:00:59]} Rc8 {[%clk 00:30:05]} {[%emt
00:00:46]} 44. Rd7+ {[%clk 00:24:39]} {[%emt 00:07:42]} Kg8 {[%clk 00:30:25]}
{[%emt 00:00:09]} 45. Rb7 {[%clk 00:24:42]} {[%emt 00:00:27]} Re8 {[%clk
00:30:01]} {[%emt 00:00:53]} 46. Nfd2 {[%clk 00:21:11]} {[%emt 00:04:02]} Re5
{[%clk 00:30:18]} {[%emt 00:00:13]} 47. Rc7 {[%clk 00:17:50]} {[%emt 00:03:51]}
Nf8 {[%clk 00:30:21]} {[%emt 00:00:27]} 48. Rc5 {[%clk 00:17:41]} {[%emt
00:00:39]} Nd7 {[%clk 00:30:17]} {[%emt 00:00:33]} 49. Nf6+ {[%clk 00:16:43]}
{[%emt 00:01:29]} 1-0

[Event "Schack-SM 2024: Veteran-SM 65+"]
[Site "Fortnox Arena, Hejaregatan 5, Vaxjo, Sweden"]
[Date "2024.06.30"]
[Round "2.7"]
[White "Alfven, Jorgen"]
[Black "Gillefalk, Bjorn"]
[Result "1/2-1/2"]
[TimeControl "90 minutes for 40 moves + 30 minutes for the rest of the game + 30 seconds per move from move one."]
[WhiteElo "1845"]
[BlackElo "2063"]

1. d4 {[%clk 01:30:27]} {[%emt 00:00:32]} Nf6 {[%clk 01:30:53]} {[%emt
00:00:07]} 2. c4 {[%clk 01:30:45]} {[%emt 00:00:12]} g6 {[%clk 01:31:02]}
{[%emt 00:00:21]} 3. Nc3 {[%clk 01:30:48]} {[%emt 00:00:27]} Bg7 {[%clk
01:31:25]} {[%emt 00:00:08]} 4. e4 {[%clk 01:30:31]} {[%emt 00:00:45]} O-O
{[%clk 01:31:47]} {[%emt 00:00:10]} 5. Nf3 {[%clk 01:29:18]} {[%emt 00:01:42]}
d6 {[%clk 01:28:43]} {[%emt 00:03:35]} 6. h3 {[%clk 01:29:27]} {[%emt
00:00:21]} Na6 {[%clk 01:27:52]} {[%emt 00:01:21]} 7. Be3 {[%clk 01:28:38]}
{[%emt 00:01:18]} c5 {[%clk 01:23:11]} {[%emt 00:05:11]} 8. d5 {[%clk
01:26:24]} {[%emt 00:02:44]} Nc7 {[%clk 01:21:50]} {[%emt 00:01:53]} 9. a4
{[%clk 01:24:03]} {[%emt 00:02:50]} e6 {[%clk 01:15:16]} {[%emt 00:07:04]} 10.
Bd3 {[%clk 01:13:53]} {[%emt 00:10:39]} exd5 {[%clk 01:15:22]} {[%emt
00:00:25]} 11. cxd5 {[%clk 01:14:17]} {[%emt 00:00:05]} a6 {[%clk 01:11:18]}
{[%emt 00:04:35]} 12. O-O {[%clk 01:11:09]} {[%emt 00:03:37]} Re8 {[%clk
01:01:37]} {[%emt 00:10:12]} 13. Nd2 {[%clk 01:04:16]} {[%emt 00:07:22]} Rb8
{[%clk 01:00:34]} {[%emt 00:01:33]} 14. a5 {[%clk 00:51:09]} {[%emt 00:13:37]}
Bd7 {[%clk 00:57:42]} {[%emt 00:03:22]} 15. Nc4 {[%clk 00:49:26]} {[%emt
00:02:13]} Bb5 {[%clk 00:48:28]} {[%emt 00:09:45]} 16. Qc2 {[%clk 00:38:21]}
{[%emt 00:11:34]} Bxc4 {[%clk 00:38:12]} {[%emt 00:10:46]} 17. Bxc4 {[%clk
00:38:27]} {[%emt 00:00:24]} b5 {[%clk 00:34:05]} {[%emt 00:04:38]} 18. axb6
{[%clk 00:37:28]} {[%emt 00:01:29]} Rxb6 {[%clk 00:33:22]} {[%emt 00:01:12]} 19.
Bg5 {[%clk 00:29:19]} {[%emt 00:08:37]} Qb8 {[%clk 00:23:59]} {[%emt 00:09:55]}
20. Rab1 {[%clk 00:23:14]} {[%emt 00:06:35]} Nb5 {[%clk 00:23:45]} {[%emt
00:00:45]} 21. Bxb5 {[%clk 00:18:25]} {[%emt 00:05:19]} axb5 {[%clk 00:24:03]}
{[%emt 00:00:11]} 22. Rfe1 {[%clk 00:15:16]} {[%emt 00:03:38]} h6 {[%clk
00:21:24]} {[%emt 00:03:10]} 23. Bf4 {[%clk 00:13:28]} {[%emt 00:02:17]} Nd7
{[%clk 00:20:28]} {[%emt 00:01:27]} 24. Qd2 {[%clk 00:11:42]} {[%emt 00:02:16]}
h5 {[%clk 00:18:56]} {[%emt 00:02:02]} 25. Bh6 {[%clk 00:10:27]} {[%emt
00:01:45]} Bf6 {[%clk 00:18:43]} {[%emt 00:00:45]} 26. Bg5 {[%clk 00:10:39]}
{[%emt 00:00:16]} Bh8 {[%clk 00:19:06]} {[%emt 00:00:07]} 27. f4 {[%clk
00:10:10]} {[%emt 00:01:00]} b4 {[%clk 00:16:52]} {[%emt 00:02:43]} 28. Nd1
{[%clk 00:08:45]} {[%emt 00:01:54]} c4 {[%clk 00:16:22]} {[%emt 00:01:01]} 29.
f5 {[%clk 00:08:14]} {[%emt 00:01:01]} c3 {[%clk 00:11:58]} {[%emt 00:04:55]}
30. Qf2 {[%clk 00:05:58]} {[%emt 00:02:45]} Ne5 {[%clk 00:06:07]} {[%emt
00:06:21]} 31. fxg6 {[%clk 00:06:13]} {[%emt 00:00:15]} fxg6 {[%clk 00:06:36]}
{[%emt 00:00:01]} 32. Rf1 {[%clk 00:05:05]} {[%emt 00:01:38]} Rb7 {[%clk
00:06:06]} {[%emt 00:01:00]} 33. bxc3 {[%clk 00:04:51]} {[%emt 00:00:44]} b3
{[%clk 00:04:04]} {[%emt 00:02:33]} 34. Be3 {[%clk 00:03:30]} {[%emt 00:01:50]}
Rf7 {[%clk 00:04:12]} {[%emt 00:00:23]} 35. Qe2 {[%clk 00:03:41]} {[%emt
00:00:19]} Rxf1+ {[%clk 00:04:07]} {[%emt 00:00:34]} 36. Qxf1 {[%clk 00:03:52]}
{[%emt 00:00:19]} Qb7 {[%clk 00:02:00]} {[%emt 00:02:39]} 37. Qe2 {[%clk
00:03:57]} {[%emt 00:00:22]} Bg7 {[%clk 00:02:00]} {[%emt 00:00:31]} 38. Bd4
{[%clk 00:03:55]} {[%emt 00:00:32]} Rc8 {[%clk 00:02:06]} {[%emt 00:00:25]} 39.
Ne3 {[%clk 00:03:21]} {[%emt 00:01:04]} Rb8 {[%clk 00:02:10]} {[%emt 00:00:26]}
40. Rb2 {[%clk 00:03:11]} {[%emt 00:00:39]} Qb5 {[%clk 00:01:31]} {[%emt
00:01:10]} 41. Qxb5 {[%emt 00:06:12]} Rxb5 {[%emt 00:00:30]} 42. Rb1 {[%clk
00:27:34]} {[%emt 00:00:01]} Rb8 {[%clk 00:30:49]} {[%emt 00:00:07]} 1/2-1/2

[Event "Schack-SM 2024: Veteran-SM 65+"]
[Site "Fortnox Arena, Hejaregatan 5, Vaxjo, Sweden"]
[Date "2024.06.29"]
[Round "1.6"]
[White "Malmdin, Nils-Ake"]
[Black "Magnussen, Pal"]
[Result "1-0"]
[TimeControl "90 minutes for 40 moves + 30 minutes for the rest of the game + 30 seconds per move from move one."]
[WhiteTitle "FM"]
[WhiteElo "2064"]
[BlackElo "1905"]

1. e4 {[%clk 01:30:35]} {[%emt 00:00:24]} e5 {[%clk 01:30:46]} {[%emt
00:00:15]} 2. Nf3 {[%clk 01:30:49]} {[%emt 00:00:15]} Nc6 {[%clk 01:30:59]}
{[%emt 00:00:17]} 3. d4 {[%clk 01:30:50]} {[%emt 00:00:29]} exd4 {[%clk
01:25:46]} {[%emt 00:05:44]} 4. Bb5 {[%clk 01:31:02]} {[%emt 00:00:18]} Nf6
{[%clk 01:23:40]} {[%emt 00:02:36]} 5. O-O {[%clk 01:30:26]} {[%emt 00:01:05]}
Be7 {[%clk 01:22:51]} {[%emt 00:01:20]} 6. e5 {[%clk 01:22:30]} {[%emt
00:08:25]} Ne4 {[%clk 01:21:37]} {[%emt 00:01:44]} 7. Re1 {[%clk 01:22:13]}
{[%emt 00:00:46]} Nc5 {[%clk 01:16:51]} {[%emt 00:05:17]} 8. Nxd4 {[%clk
01:17:03]} {[%emt 00:05:39]} Nxd4 {[%clk 01:15:28]} {[%emt 00:01:54]} 9. Qxd4
{[%clk 01:17:21]} {[%emt 00:00:12]} O-O {[%clk 01:15:42]} {[%emt 00:00:17]} 10.
Nc3 {[%clk 01:15:11]} {[%emt 00:02:38]} c6 {[%clk 01:12:30]} {[%emt 00:03:43]}
11. Bf1 {[%clk 01:10:31]} {[%emt 00:05:09]} d5 {[%clk 01:05:16]} {[%emt
00:07:45]} 12. exd6 {[%clk 01:01:13]} {[%emt 00:09:48]} Qxd6 {[%clk 01:05:25]}
{[%emt 00:00:22]} 13. Be3 {[%clk 00:57:20]} {[%emt 00:04:22]} Bf5 {[%clk
01:00:12]} {[%emt 00:05:44]} 14. Qxc5 {[%clk 00:55:49]} 1-0

[Event "Schack-SM 2024: Veteran-SM 65+"]
[Site "Fortnox Arena, Hejaregatan 5, Vaxjo, Sweden"]
[Date "2024.06.29"]
[Round "1.7"]
[White "Gromark, Per-Olof"]
[Black "Hedin, Gunnar"]
[Result "1/2-1/2"]
[TimeControl "90 minutes for 40 moves + 30 minutes for the rest of the game + 30 seconds per move from move one."]
[WhiteElo "1898"]
[BlackElo "2064"]

1. c4 {[%clk 01:30:41]} {[%emt 00:00:18]} f5 {[%clk 01:30:24]} {[%emt
00:00:38]} 2. Nc3 {[%clk 01:30:27]} {[%emt 00:00:42]} Nf6 {[%clk 01:30:47]}
{[%emt 00:00:08]} 3. g3 {[%clk 01:30:30]} {[%emt 00:00:26]} g6 {[%clk
01:30:30]} {[%emt 00:00:49]} 4. Bg2 {[%clk 01:30:43]} {[%emt 00:00:15]} Bg7
{[%clk 01:30:53]} {[%emt 00:00:08]} 5. d3 {[%clk 01:30:49]} {[%emt 00:00:24]}
O-O {[%clk 01:30:32]} {[%emt 00:00:51]} 6. e4 {[%clk 01:30:22]} {[%emt
00:00:57]} d6 {[%clk 01:27:22]} {[%emt 00:03:40]} 7. Nge2 {[%clk 01:30:21]}
{[%emt 00:00:29]} c6 {[%clk 01:12:46]} {[%emt 00:15:09]} 8. O-O {[%clk
01:29:45]} {[%emt 00:01:05]} Na6 {[%clk 01:11:40]} {[%emt 00:01:38]} 9. h3
{[%clk 01:24:16]} {[%emt 00:05:55]} e5 {[%clk 01:07:06]} {[%emt 00:05:06]} 10.
exf5 {[%clk 01:13:30]} {[%emt 00:11:15]} Bxf5 {[%clk 00:49:09]} {[%emt
00:18:27]} 11. Bg5 {[%clk 01:05:40]} {[%emt 00:08:20]} h6 {[%clk 00:43:46]}
{[%emt 00:05:54]} 12. Bxf6 {[%clk 01:05:24]} {[%emt 00:00:45]} Bxf6 {[%clk
00:43:14]} {[%emt 00:01:03]} 13. d4 {[%clk 01:00:54]} {[%emt 00:05:00]} exd4
{[%clk 00:37:01]} {[%emt 00:06:42]} 14. Nxd4 {[%clk 01:00:55]} {[%emt
00:00:29]} Bd7 {[%clk 00:37:20]} {[%emt 00:00:12]} 15. Qd2 {[%clk 00:54:15]}
{[%emt 00:07:10]} Bg7 {[%clk 00:32:57]} {[%emt 00:04:52]} 16. Rad1 {[%clk
00:54:01]} {[%emt 00:00:44]} Nc5 {[%clk 00:31:54]} {[%emt 00:01:35]} 17. Nde2
{[%clk 00:51:06]} {[%emt 00:03:23]} Be6 {[%clk 00:26:36]} {[%emt 00:05:49]} 18.
b3 {[%clk 00:49:17]} {[%emt 00:02:19]} Qb6 {[%clk 00:26:42]} {[%emt 00:00:25]}
19. Nd4 {[%clk 00:42:21]} {[%emt 00:07:25]} Bf7 {[%clk 00:26:20]} {[%emt
00:00:53]} 20. Nde2 {[%clk 00:34:27]} {[%emt 00:08:23]} Rad8 {[%clk 00:25:31]}
{[%emt 00:01:19]} 21. Ne4 {[%clk 00:33:07]} {[%emt 00:01:50]} Nxe4 {[%clk
00:24:58]} {[%emt 00:01:03]} 22. Bxe4 {[%clk 00:32:57]} {[%emt 00:00:40]} d5
{[%clk 00:24:46]} {[%emt 00:00:43]} 23. cxd5 {[%clk 00:33:04]} {[%emt
00:00:22]} Bxd5 {[%clk 00:25:14]} {[%emt 00:00:03]} 24. Bxd5+ {[%clk 00:33:06]}
{[%emt 00:00:28]} Rxd5 {[%clk 00:25:35]} {[%emt 00:00:09]} 25. Qc2 {[%clk
00:32:26]} {[%emt 00:01:09]} Rxd1 {[%clk 00:18:26]} {[%emt 00:07:39]} 1/2-1/2

[ePGN "0.1;DGT LiveChess/2.2.6"]